fUST/lending_fUST_20250225
["ID","MTS","AMOUNT","RATE_DAILY","PERIOD"]
[354401157,1740471086281,-637.0,0.0069863,120]
[354401158,1740471086291,-637.0,0.0069863,120]
[354401159,1740471086301,-637.0,0.0069863,120]
[354401160,1740471086310,-637.0,0.0069863,120]
[354401161,1740471086320,-637.0,0.0069863,120]
[354401162,1740471086330,-637.0,0.0069863,120]
[354401163,1740471086339,-637.0,0.0069863,120]
[354401164,1740471086349,-637.0,0.0069863,120]
[354401165,1740471086358,-637.0,0.0069863,120]
[354401166,1740471086367,-637.0,0.0069863,120]
[354401167,1740471086376,-637.0,0.0069863,120]
[354401168,1740471086386,-637.0,0.0069863,120]
[354401169,1740471086395,-637.0,0.0069863,120]
[354401170,1740471086407,-637.0,0.0069863,120]
[354401171,1740471086418,-637.0,0.0069863,120]
[354401172,1740471086428,-637.0,0.0069863,120]
[354401173,1740471086438,-637.0,0.0069863,120]
[354401174,1740471086448,-637.0,0.0069863,120]
[354401175,1740471086458,-637.0,0.0069863,120]
[354401176,1740471086467,-637.0,0.0069863,120]
[354401177,1740471086477,-637.0,0.0069863,120]
[354401178,1740471086486,-637.0,0.0069863,120]
[354401179,1740471086495,-175.0,0.0069863,120]
[354401180,1740471086505,-175.0,0.0069863,120]
[354401181,1740471086514,-175.0,0.0069863,120]
[354401182,1740471086523,-175.0,0.0069863,120]
[354401183,1740471086533,-175.0,0.0069863,120]
[354401184,1740471086542,-175.0,0.0069863,120]
[354401185,1740471086552,-175.0,0.0069863,120]
[354401186,1740471086562,-175.0,0.0069863,120]
[354401187,1740471086571,-175.0,0.0069863,120]
[354401188,1740471086581,-175.0,0.0069863,120]
[354401189,1740471086590,-175.0,0.0069863,120]
[354401190,1740471086600,-175.0,0.0069863,120]
[354401191,1740471086610,-175.0,0.0069863,120]
[354401192,1740471086620,-175.0,0.0069863,120]
[354401193,1740471086629,-175.0,0.0069863,120]
[354401194,1740471086639,-175.0,0.0069863,120]
[354401195,1740471086648,-175.0,0.0069863,120]
[354401196,1740471086658,-175.0,0.0069863,120]
[354401197,1740471086668,-175.0,0.0069863,120]
[354401198,1740471086678,-175.0,0.0069863,120]
[354401199,1740471086688,-175.0,0.0069863,120]
[354401200,1740471086698,-175.0,0.0069863,120]
[354401201,1740471086707,-175.0,0.0069863,120]
[354401202,1740471086716,-175.0,0.0069863,120]
[354401203,1740471086726,-175.0,0.0069863,120]
[354401204,1740471086736,-175.0,0.0069863,120]
[354401205,1740471086746,-175.0,0.0069863,120]
[354401206,1740471086756,-175.0,0.0069863,120]
[354401207,1740471086766,-175.0,0.0069863,120]
[354401208,1740471086775,-175.0,0.0069863,120]
[354401209,1740471086784,-175.0,0.0069863,120]
[354401210,1740471086794,-175.0,0.0069863,120]
[354401211,1740471086803,-175.0,0.0069863,120]
[354401212,1740471086814,-175.0,0.0069863,120]
[354401213,1740471086823,-175.0,0.0069863,120]
[354401214,1740471086834,-175.0,0.0069863,120]
[354401215,1740471086844,-175.0,0.0069863,120]
[354401216,1740471086855,-175.0,0.0069863,120]
[354401217,1740471086865,-175.0,0.0069863,120]
[354401218,1740471086880,-175.0,0.0069863,120]
[354401219,1740471086890,-175.0,0.0069863,120]
[354401220,1740471086900,-175.0,0.0069863,120]
[354401221,1740471086910,-175.0,0.0069863,120]
[354401222,1740471086920,-175.0,0.0069863,120]
[354401223,1740471086931,-175.0,0.0069863,120]
[354401224,1740471086941,-175.0,0.0069863,120]
[354401225,1740471086951,-175.0,0.0069863,120]
[354401226,1740471086961,-175.0,0.0069863,120]
[354401227,1740471086971,-175.0,0.0069863,120]
[354401228,1740471086981,-175.0,0.0069863,120]
[354401229,1740471086991,-175.0,0.0069863,120]
[354401230,1740471087000,-175.0,0.0069863,120]
[354401231,1740471087010,-175.0,0.0069863,120]
[354401232,1740471087019,-175.0,0.0069863,120]
[354401233,1740471087030,-175.0,0.0069863,120]
[354401234,1740471087040,-175.0,0.0069863,120]
[354401235,1740471087049,-175.0,0.0069863,120]
[354401236,1740471087059,-175.0,0.0069863,120]
[354401237,1740471087068,-175.0,0.0069863,120]
[354401238,1740471087077,-175.0,0.0069863,120]
[354401239,1740471087088,-175.0,0.0069863,120]
[354401240,1740471087097,-175.0,0.0069863,120]
[354401241,1740471087107,-175.0,0.0069863,120]
[354401242,1740471087117,-175.0,0.0069863,120]
[354401243,1740471087133,-175.0,0.0069863,120]
[354401244,1740471087143,-175.0,0.0069863,120]
[354401245,1740471087152,-50000.0,0.00699996,81]
[354401246,1740471087162,-22565.0,0.007,120]
[354401247,1740471087172,-5000.02819237,0.007,120]
[354401248,1740471087183,-2734.752985,0.0072,120]
[354401249,1740471087192,-30000.0,0.00737,120]
[354401250,1740471087202,-10000.0,0.00745,120]
[354401251,1740471087212,-1018.4369745,0.0074747,120]
[354401252,1740471087262,-4459.62426348,0.007599,120]
[354401253,1740471087271,-9999.0,0.00778,120]
[354401254,1740471087281,-1001.47856963,0.00789999,120]
[354401255,1740471087290,-1342.69843382,0.0079,120]
[354401256,1740471087299,-16097.19646807,0.0079,120]
[354401257,1740471087312,-77902.80353193,0.0079,120]
[354401258,1740471087322,-5000.0,0.0079,120]
[354401259,1740471087332,-4430.569,0.0079,120]
[354401260,1740471087342,-19666.62989809,0.0079,120]
[354401261,1740471087354,-74333.37010191,0.0079,120]
[354401262,1740471087364,-48902.86239905,0.0079,120]
[354401263,1740471087375,-45097.13760095,0.0079,120]
[354401264,1740471087385,-28397.86208905,0.0079,120]
[354401265,1740471087402,-1612.84655275,0.0079,120]
[354401266,1740471087413,-54543.4890241,0.0079,120]
[354401267,1740471137653,-401.91431634,0.00036346,60]
[354401268,1740471137680,-300.0,0.00042336,5]
[354401269,1740471137706,-4988.50227895,0.00042337,2]
[354401270,1740471137736,-750.0,0.00054794,120]
[354401271,1740471137851,-1500.0,0.00055068,120]
[354401272,1740471137881,-2250.0,0.00055342,120]
[354401273,1740471137909,-1769.2,0.00055616,120]
[354401274,1740471137935,-500.0,0.00065399,120]
[354401275,1740471137961,-500.0,0.00065399,120]
[354401276,1740471137992,-500.0,0.00065399,120]
[354401277,1740471138019,-300.0,0.00065399,120]
[354401278,1740471138046,-500.0,0.00065753,2]
[354401279,1740471138078,-500.0,0.00065753,120]
[354401280,1740471138114,-500.0,0.00065753,120]
[354401281,1740471138152,-500.0,0.00065753,120]
[354401282,1740471138184,-500.0,0.00065753,120]
[354401283,1740471138215,-500.0,0.00065753,120]
[354401284,1740471138245,-500.0,0.00065753,30]
[354401285,1740471138274,-514.61672996,0.00065753,120]
[354401286,1740471138304,-500.0,0.00065753,120]
[354401287,1740471138333,-500.0,0.00065753,120]
[354401288,1740471138362,-500.0,0.00065753,120]
[354401289,1740471138390,-500.0,0.00065753,120]
[354401290,1740471138417,-500.0,0.00065753,120]
[354401291,1740471138443,-500.0,0.00065753,120]
[354401292,1740471138472,-500.0,0.00065753,120]
[354401293,1740471138498,-500.0,0.00065753,120]
[354401294,1740471138526,-500.0,0.00065753,120]
[354401295,1740471138555,-500.0,0.00065753,120]
[354401296,1740471138582,-500.0,0.00065753,120]
[354401297,1740471138610,-586.39,0.00065753,120]
[354401298,1740471138636,-500.0,0.00065753,120]
[354401299,1740471138664,-600.0,0.00065753,120]
[354401300,1740471138691,-500.0,0.00065753,3]
[354401301,1740471138717,-500.0,0.00065753,120]
[354401302,1740471138745,-4947.6,0.00065753,7]
[354401303,1740471138770,-500.0,0.00065753,120]
[354401304,1740471138796,-500.0,0.00065753,120]
[354401305,1740471138823,-504.04100349,0.00065753,120]
[354401306,1740471138850,-500.0,0.00065753,120]
[354401307,1740471138878,-506.96710252,0.00065753,120]
[354401308,1740471138906,-503.58824205,0.00065753,120]
[354401309,1740471138936,-500.0,0.00065753,120]
[354401310,1740471138965,-500.0,0.00065753,120]
[354401311,1740471138998,-500.0,0.00065753,120]
[354401312,1740471139026,-500.0,0.00065753,120]
[354401313,1740471139054,-501.81575575,0.00065753,120]
[354401314,1740471139082,-500.0,0.00065753,120]
[354401315,1740471139116,-500.0,0.00065753,120]
[354401316,1740471139144,-500.0,0.00065753,120]
[354401317,1740471139172,-501.24476018,0.00065753,120]
[354401318,1740471139200,-500.0,0.00065753,120]
[354401319,1740471139232,-500.0,0.00065753,120]
[354401320,1740471139357,-500.0,0.00065753,120]
[354401321,1740471139386,-561.22,0.00065753,120]
[354401322,1740471139412,-500.0,0.00065753,120]
[354401323,1740471139440,-500.39106724,0.00065753,120]
[354401324,1740471139465,-158.74620652,0.00065753,120]
[354401325,1740471139493,-501.38127627,0.00065753,120]
[354401326,1740471139518,-500.0,0.00065753,120]
[354401327,1740471139544,-500.0,0.00065753,120]
[354401328,1740471139567,-500.0,0.00065753,120]
[354401329,1740471139593,-500.0,0.00065753,120]
[354401330,1740471139616,-500.0,0.00065753,30]
[354401331,1740471139640,-500.0,0.00065753,120]
[354401332,1740471139664,-500.0,0.00065753,120]
[354401333,1740471139688,-500.0,0.00065753,120]
[354401334,1740471139713,-860.99,0.00065753,120]
[354401335,1740471139738,-500.0,0.00065753,120]
[354401336,1740471139761,-500.91598207,0.00065753,120]
[354401337,1740471139785,-596.57072785,0.00065753,120]
[354401338,1740471139808,-500.0,0.00065753,120]
[354401339,1740471139834,-502.12579925,0.00065753,120]
[354401340,1740471139858,-500.0,0.00065753,120]
[354401341,1740471139887,-500.0,0.00065753,120]
[354401342,1740471139913,-500.0,0.00065753,120]
[354401343,1740471139939,-500.0,0.00065753,120]
[354401344,1740471139964,-325.54148079,0.00065753,120]
[354401345,1740471140004,-500.43850721,0.00065753,120]
[354401346,1740471140042,-500.77239194,0.00065753,120]
[354401347,1740471140081,-500.0,0.00065753,120]
[354401348,1740471140120,-503.12519959,0.00065753,120]
[354401349,1740471140159,-500.0,0.00066027,120]
[354401350,1740471140193,-500.0,0.00066027,120]
[354401351,1740471140230,-500.0,0.00066027,120]
[354401352,1740471140269,-500.0,0.00066027,120]
[354401353,1740471140300,-500.0,0.00066027,120]
[354401354,1740471140336,-500.0,0.00066027,120]
[354401355,1740471140368,-503.21016175,0.00066027,120]
[354401356,1740471140402,-500.0,0.00066027,120]
[354401357,1740471140434,-586.40624455,0.00066027,120]
[354401358,1740471140465,-331.6988586,0.00066027,120]
[354401359,1740471140494,-500.0,0.00066027,120]
[354401360,1740471140518,-501.26843543,0.00066027,120]
[354401361,1740471140542,-338.14490624,0.00066027,120]
[354401362,1740471140566,-500.0,0.00066027,120]
[354401363,1740471140589,-502.72861385,0.00066027,120]
[354401364,1740471140614,-500.0,0.00066027,120]
[354401365,1740471140640,-500.0,0.00066027,3]
[354401366,1740471140664,-535.92652497,0.00066027,120]
[354401367,1740471140691,-4947.6,0.00066027,7]
[354401368,1740471140716,-503.88656047,0.00066027,120]
[354401369,1740471140742,-500.0,0.00066027,120]
[354401370,1740471140954,-500.0,0.00066027,120]
[354401371,1740471140985,-500.0,0.00066027,120]
[354401372,1740471141009,-501.30971949,0.00066027,120]
[354401373,1740471141032,-500.0,0.00066027,120]
[354401374,1740471141058,-500.0,0.00066027,120]
[354401375,1740471141085,-500.0,0.00066027,120]
[354401376,1740471141111,-503.39682273,0.00066027,120]
[354401377,1740471141135,-561.22,0.00066027,120]
[354401378,1740471141159,-500.0,0.00066027,120]
[354401379,1740471141183,-500.0,0.00066027,120]
[354401380,1740471141206,-500.0,0.00066027,120]
[354401381,1740471141232,-500.0,0.00066027,120]
[354401382,1740471141256,-500.98022144,0.00066027,30]
[354401383,1740471141279,-536.05514205,0.00066027,120]
[354401384,1740471141302,-500.0,0.00066027,120]
[354401385,1740471141325,-500.0,0.00066027,120]
[354401386,1740471141349,-860.99,0.00066027,120]
[354401387,1740471141373,-500.0,0.00066027,120]
[354401388,1740471141396,-401.51751739,0.00066027,120]
[354401389,1740471141421,-506.32039099,0.00066027,120]
[354401390,1740471141445,-535.19,0.00066027,120]
[354401391,1740471141468,-500.0,0.00066027,120]
[354401392,1740471141491,-500.0,0.00066027,120]
[354401393,1740471141516,-151.37014067,0.00066301,120]
[354401394,1740471141541,-500.0,0.00066301,120]
[354401395,1740471141565,-500.0,0.00066301,120]
[354401396,1740471141588,-500.0,0.00066301,120]
[354401397,1740471141613,-357.15,0.00066301,120]
[354401398,1740471141636,-500.0,0.00066301,120]
[354401399,1740471141661,-500.0,0.00066301,3]
[354401400,1740471141687,-4947.6,0.00066301,7]
[354401401,1740471141710,-500.0,0.00066301,120]
[354401402,1740471141736,-500.0,0.00066301,120]
[354401403,1740471141762,-500.0,0.00066301,120]
[354401404,1740471141787,-561.22,0.00066301,120]
[354401405,1740471141811,-500.0,0.00066301,120]
[354401406,1740471141836,-268.53428588,0.00066301,120]
[354401407,1740471141860,-535.72116943,0.00066301,120]
[354401408,1740471141888,-500.0,0.00066301,120]
[354401409,1740471141913,-500.0,0.00066301,120]
[354401410,1740471141939,-500.0,0.00066301,120]
[354401411,1740471141964,-860.99,0.00066301,120]
[354401412,1740471141990,-150.86658108,0.00066301,120]
[354401413,1740471142015,-500.0,0.00066301,120]
[354401414,1740471142041,-499.0,0.00066301,120]
[354401415,1740471142066,-500.0,0.00066575,120]
[354401416,1740471142092,-500.0,0.00066575,120]
[354401417,1740471142116,-500.0,0.00066575,120]
[354401418,1740471142140,-500.0,0.00066575,120]
[354401419,1740471142166,-439.34,0.00066575,3]
[354401420,1740471142193,-4947.6,0.00066575,7]
[354401421,1740471142217,-500.0,0.00066575,120]
[354401422,1740471142246,-448.56,0.00066575,120]
[354401423,1740471142271,-561.22,0.00066575,120]
[354401424,1740471142296,-500.0,0.00066575,120]
[354401425,1740471142319,-500.0,0.00066575,120]
[354401426,1740471142343,-860.99,0.00066575,120]
[354401427,1740471142367,-500.0,0.00066849,120]
[354401428,1740471142392,-500.0,0.00066849,120]
[354401429,1740471142416,-500.0,0.00066849,120]
[354401430,1740471142442,-555.74,0.00066849,120]
[354401431,1740471142475,-4947.6,0.00066849,7]
[354401432,1740471142500,-500.0,0.00066849,120]
[354401433,1740471142528,-561.22,0.00066849,120]
[354401434,1740471142554,-500.0,0.00066849,120]
[354401435,1740471142578,-500.0,0.00066849,120]
[354401436,1740471142602,-860.99,0.00066849,120]
[354401437,1740471142697,-500.0,0.00067123,120]
[354401438,1740471142723,-500.0,0.00067123,120]
[354401439,1740471142746,-500.0,0.00067123,120]
[354401440,1740471142771,-4947.6,0.00067123,7]
[354401441,1740471142796,-500.0,0.00067123,120]
[354401442,1740471142819,-561.22,0.00067123,120]
[354401443,1740471142846,-500.0,0.00067123,120]
[354401444,1740471142870,-500.0,0.00067123,120]
[354401445,1740471142897,-860.99,0.00067123,120]
[354401446,1740471142925,-500.0,0.00067397,120]
[354401447,1740471142951,-500.0,0.00067397,120]
[354401448,1740471142978,-500.0,0.00067397,120]
[354401449,1740471143005,-4947.6,0.00067397,7]
[354401450,1740471143031,-500.0,0.00067397,120]
[354401451,1740471143056,-561.22,0.00067397,120]
[354401452,1740471143083,-500.0,0.00067397,120]
[354401453,1740471143109,-501.35,0.00067397,120]
[354401454,1740471143132,-860.99,0.00067397,120]
[354401455,1740471143157,-500.0,0.00067671,120]
[354401456,1740471143182,-500.0,0.00067671,120]
[354401457,1740471143205,-500.0,0.00067671,120]
[354401458,1740471143232,-4947.6,0.00067671,7]
[354401459,1740471143256,-500.0,0.00067671,120]
[354401460,1740471143280,-561.22,0.00067671,120]
[354401461,1740471143306,-184.79,0.00067671,120]
[354401462,1740471143331,-860.99,0.00067671,120]
[354401463,1740471143356,-500.0,0.00067945,120]
[354401464,1740471143382,-257.45,0.00067945,120]
[354401465,1740471143405,-500.0,0.00067945,120]
[354401466,1740471143432,-4947.6,0.00067945,7]
[354401467,1740471143457,-500.0,0.00067945,120]
[354401468,1740471143482,-561.22,0.00067945,120]
[354401469,1740471143506,-860.99,0.00067945,120]
[354401470,1740471143530,-500.0,0.00068219,120]
[354401471,1740471143553,-500.0,0.00068219,120]
[354401472,1740471143579,-4947.6,0.00068219,7]
[354401473,1740471143603,-500.0,0.00068219,120]
[354401474,1740471143627,-561.22,0.00068219,120]
[354401475,1740471143651,-860.99,0.00068219,120]
[354401476,1740471143675,-500.0,0.00068493,120]
[354401477,1740471143698,-500.0,0.00068493,120]
[354401478,1740471143726,-4947.6,0.00068493,7]
[354401479,1740471143751,-500.0,0.00068493,120]
[354401480,1740471143775,-561.22,0.00068493,120]
[354401481,1740471143799,-860.99,0.00068493,120]
[354401482,1740471143824,-500.0,0.00068767,120]
[354401483,1740471143850,-500.0,0.00068767,120]
[354401484,1740471143879,-4947.6,0.00068767,7]
[354401485,1740471143906,-500.0,0.00068767,120]
[354401486,1740471143932,-561.22,0.00068767,120]
[354401487,1740471143959,-860.99,0.00068767,120]
[354401488,1740471143989,-500.0,0.00069041,120]
[354401489,1740471144014,-500.0,0.00069041,120]
[354401490,1740471144041,-4947.6,0.00069041,7]
[354401491,1740471144068,-500.0,0.00069041,120]
[354401492,1740471144095,-561.22,0.00069041,120]
[354401493,1740471144120,-860.99,0.00069041,120]
[354401494,1740471144146,-500.0,0.00069315,120]
[354401495,1740471144171,-500.0,0.00069315,120]
[354401496,1740471144197,-4947.6,0.00069315,7]
[354401497,1740471144225,-500.0,0.00069315,120]
[354401498,1740471144250,-561.22,0.00069315,120]
[354401499,1740471144274,-860.99,0.00069315,120]
[354401500,1740471144299,-500.0,0.00069589,120]
[354401501,1740471144323,-500.0,0.00069589,120]
[354401502,1740471144349,-4947.6,0.00069589,7]
[354401503,1740471144375,-500.0,0.00069589,120]
[354401504,1740471144400,-561.22,0.00069589,120]
[354401505,1740471144425,-860.99,0.00069589,120]
[354401506,1740471144450,-500.0,0.00069863,120]
[354401507,1740471144477,-500.0,0.00069863,120]
[354401508,1740471144503,-4947.6,0.00069863,7]
[354401509,1740471144533,-500.0,0.00069863,120]
[354401510,1740471144559,-561.22,0.00069863,120]
[354401511,1740471144583,-860.99,0.00069863,120]
[354401512,1740471144608,-500.0,0.00070136,120]
[354401513,1740471144631,-293.960182,0.00070136,120]
[354401514,1740471144655,-500.0,0.00070136,120]
[354401515,1740471144678,-293.960182,0.00070136,120]
[354401516,1740471144702,-473.933345,0.00070136,120]
[354401517,1740471144729,-4947.6,0.00070136,7]
[354401518,1740471144752,-473.933345,0.00070136,120]
[354401519,1740471144776,-151.0,0.00070136,120]
[354401520,1740471144801,-500.0,0.00070136,120]
[354401521,1740471144827,-561.22,0.00070136,120]
[354401522,1740471144852,-860.99,0.00070136,120]
[354401523,1740471144877,-151.0,0.000702,120]
[354401524,1740471144907,-478.51,0.0007041,120]
[354401525,1740471144931,-500.0,0.0007041,120]
[354401526,1740471144956,-151.0,0.0007041,120]
[354401527,1740471144981,-182.49266,0.0007041,120]
[354401528,1740471145007,-4947.6,0.0007041,7]
[354401529,1740471145031,-177.687096,0.0007041,120]
[354401530,1740471145145,-177.687096,0.0007041,120]
[354401531,1740471145172,-408.48,0.0007041,120]
[354401532,1740471145197,-151.0,0.0007041,120]
[354401533,1740471145224,-561.22,0.0007041,120]
[354401534,1740471145251,-290.0,0.0007041,120]
[354401535,1740471145276,-860.99,0.0007041,120]
[354401536,1740471145302,-500.0,0.00070684,120]
[354401537,1740471145329,-4947.6,0.00070684,7]
[354401538,1740471145357,-561.22,0.00070684,120]
[354401539,1740471145384,-860.99,0.00070684,120]
[354401540,1740471145409,-774.18057276,0.00070957,15]
[354401541,1740471145437,-500.0,0.00070958,120]
[354401542,1740471145465,-4947.6,0.00070958,7]
[354401543,1740471145493,-561.22,0.00070958,120]
[354401544,1740471145519,-860.99,0.00070958,120]
[354401545,1740471145545,-184.34712578,0.00071132,28]
[354401546,1740471145572,-500.0,0.00071232,120]
[354401547,1740471145601,-4947.6,0.00071232,7]
[354401548,1740471145627,-561.22,0.00071232,120]
[354401549,1740471145653,-860.99,0.00071232,120]
[354401550,1740471145679,-293.960182,0.00071506,120]
[354401551,1740471145707,-170.35227565,0.00071506,120]
[354401552,1740471145736,-293.960182,0.00071506,120]
[354401553,1740471145762,-473.933345,0.00071506,120]
[354401554,1740471145791,-4947.6,0.00071506,7]
[354401555,1740471145817,-473.933345,0.00071506,120]
[354401556,1740471145843,-151.0,0.00071506,120]
[354401557,1740471145869,-561.22,0.00071506,120]
[354401558,1740471145895,-860.99,0.00071506,120]
[354401559,1740471145924,-4947.6,0.0007178,7]
[354401560,1740471145950,-561.22,0.0007178,120]
[354401561,1740471145981,-860.99,0.0007178,120]
[354401562,1740471146007,-151.0,0.00072054,120]
[354401563,1740471146033,-151.0,0.00072054,120]
[354401564,1740471146062,-4947.74742501,0.00072054,7]
[354401565,1740471146087,-177.687096,0.00072054,120]
[354401566,1740471146111,-177.687096,0.00072054,120]
[354401567,1740471146135,-151.0,0.00072054,120]
[354401568,1740471146162,-561.42210571,0.00072054,120]
[354401569,1740471146188,-861.21,0.00072054,120]
[354401570,1740471146213,-31439.10421811,0.00093,120]
[354401571,1740471157676,-500.64424464,0.00065753,120]
[354401572,1740471157703,-500.0,0.00065753,120]
[354401573,1740471157728,-500.0,0.00065753,120]
[354401574,1740471157756,-579.0,0.00065753,120]
[354401575,1740471157781,-602.91199993,0.00065753,120]
[354401576,1740471157805,-502.52693057,0.00065753,120]
[354401577,1740471157831,-500.0,0.00065753,120]
[354401578,1740471157855,-500.0,0.00065753,120]
[354401579,1740471157878,-500.0,0.00065753,120]
[354401580,1740471157904,-378.16495306,0.00065753,120]
[354401581,1740471157929,-501.69291288,0.00065753,120]
[354401582,1740471157954,-500.0,0.00065753,120]
[354401583,1740471157979,-500.0,0.00065753,120]
[354401584,1740471158007,-500.0,0.00066027,120]
[354401585,1740471158033,-500.0,0.00066027,120]
[354401586,1740471158057,-503.25787146,0.00066027,120]
[354401587,1740471158082,-500.0,0.00066027,120]
[354401588,1740471158107,-500.0,0.00066027,120]
[354401589,1740471158131,-500.0,0.00066027,120]
[354401590,1740471158156,-500.0,0.00066301,120]
[354401591,1740471158180,-500.0,0.00066301,120]
[354401592,1740471158205,-500.0,0.00066301,120]
[354401593,1740471158230,-500.0,0.00066301,120]
[354401594,1740471158256,-500.0,0.00066301,120]
[354401595,1740471158281,-500.0,0.00066575,120]
[354401596,1740471158304,-500.0,0.00066575,120]
[354401597,1740471158329,-240.45,0.00066849,120]
[354401598,1740471158353,-500.0,0.00066849,120]
[354401599,1740471158377,-500.0,0.00067123,120]
[354401600,1740471158402,-500.0,0.00067397,120]
[354401601,1740471158427,-500.0,0.00067671,120]
[354401602,1740471158452,-500.0,0.00067945,120]
[354401603,1740471158476,-100000.0,0.0009,120]
[354401604,1740471158500,-100000.0,0.00091,120]
[354401605,1740471158523,-84191.35108746,0.00092,120]
[354401606,1740471254171,-200.0,0.0006,120]
[354401607,1740471254197,-200.0,0.00064,120]
[354401608,1740471254222,-1055.2515768,0.00065653,120]
[354401609,1740471254247,-55555.0,0.00065653,120]
[354401610,1740471254272,-368.28798835,0.00065653,120]
[354401611,1740471254296,-505.42859201,0.00065753,120]
[354401612,1740471254323,-500.0,0.00065753,120]
[354401613,1740471254348,-1000.0,0.00065753,120]
[354401614,1740471254373,-588.66,0.00065753,120]
[354401615,1740471254397,-502.26493188,0.00065753,120]
[354401616,1740471254544,-500.0,0.00065753,120]
[354401617,1740471254572,-502.66129797,0.00065753,120]
[354401618,1740471254596,-276.78613901,0.00065753,120]
[354401619,1740471254620,-500.0,0.00065753,120]
[354401620,1740471254644,-500.0,0.00065753,120]
[354401621,1740471254668,-500.0,0.00065753,120]
[354401622,1740471254691,-500.0,0.00065753,120]
[354401623,1740471254715,-502.91043668,0.00065753,120]
[354401624,1740471254738,-501.89551801,0.00065753,120]
[354401625,1740471254761,-502.46975079,0.00065753,120]
[354401626,1740471254787,-500.0,0.00065753,7]
[354401627,1740471254811,-501.55192189,0.00065753,120]
[354401628,1740471254837,-500.0,0.00065753,120]
[354401629,1740471254862,-500.0,0.00065753,120]
[354401630,1740471254887,-500.0,0.00065753,120]
[354401631,1740471254912,-500.0,0.00065753,120]
[354401632,1740471254939,-500.0,0.00065753,120]
[354401633,1740471254965,-500.0,0.00065753,120]
[354401634,1740471254989,-500.0,0.00065753,120]
[354401635,1740471255013,-501.94499797,0.00065753,120]
[354401636,1740471255038,-519.23580494,0.00065753,120]
[354401637,1740471255063,-500.0,0.00065753,120]
[354401638,1740471255092,-1947.48,0.00065753,120]
[354401639,1740471255117,-500.0,0.00065753,120]
[354401640,1740471255141,-1002.94095412,0.00066027,120]
[354401641,1740471255165,-500.0,0.00066027,120]
[354401642,1740471255189,-500.0,0.00066027,120]
[354401643,1740471255213,-500.0,0.00066027,120]
[354401644,1740471255237,-500.0,0.00066027,120]
[354401645,1740471255263,-500.0,0.00066027,7]
[354401646,1740471255287,-500.0,0.00066027,120]
[354401647,1740471255312,-500.0,0.00066027,120]
[354401648,1740471255338,-224.54,0.00066027,120]
[354401649,1740471255362,-500.0,0.00066027,120]
[354401650,1740471255386,-500.0,0.00066027,120]
[354401651,1740471255413,-1947.48,0.00066027,120]
[354401652,1740471255438,-514.35,0.00066027,120]
[354401653,1740471255464,-311.59,0.00066301,120]
[354401654,1740471255487,-500.0,0.00066301,120]
[354401655,1740471255514,-500.0,0.00066301,7]
[354401656,1740471255539,-500.0,0.00066301,120]